bitfinex/quotes_ETHUSD_20250403
["timestamp","ask_amount","ask_price","bid_price","bid_amount"]
[1743710695759,5.60073,1785.5,1785.2,0.55]
[1743710696911,5.60073,1785.5,1785.2,6.15161]
[1743710697315,11.20159,1785.5,1785.2,0.55]
[1743710698093,5.60073,1785.5,1785.2,0.55]
[1743710698298,5.60073,1785.5,1785.2,6.1516]
[1743710700527,10.42605876,1785.8,1785.4,6.15097]
[1743710700713,11.9477,1785.9,1785.6,0.55]
[1743710700894,6.3482,1785.9,1785.6,0.55]
[1743710701215,5.59987,1785.8,1785.5,0.55]
[1743710702127,11.19981,1785.8,1785.5,0.55]
[1743710702593,5.59987,1785.8,1785.5,0.55]
[1743710702796,11.19977,1785.8,1785.5,0.55]
[1743710703299,11.19983,1785.8,1785.5,0.55]
[1743710704227,16.02611876,1785.8,1785.5,0.55]
[1743710704398,10.42615876,1785.8,1785.5,0.55]
[1743710704599,10.42615876,1785.8,1785.5,6.15066]
[1743710705527,10.42615876,1785.8,1785.5,7.32581]
[1743710705700,13.42541876,1786.0,1785.7,0.55]
[1743710705896,4.82628876,1786.0,1785.7,6.15004]
[1743710706126,10.42541876,1786.0,1785.7,5.60004]
[1743710706331,10.42541876,1786.0,1785.8,0.55]
[1743710707536,4.82628876,1786.0,1785.8,0.55]
[1743710707731,10.42551876,1786.0,1785.7,0.55]
[1743710707936,16.02492876,1786.0,1785.7,0.55]
[1743710708353,16.02478876,1786.0,1785.7,0.55]
[1743710709407,10.42551876,1786.0,1785.7,1.244101]
[1743710709923,4.82628876,1786.0,1785.4,5.60084]
[1743710710124,4.82628876,1786.0,1785.2,1.180339]
[1743710710125,5.64788876,1785.8,1785.2,2.04824035]
[1743710710325,5.60129,1785.3,1785.1,0.05]
[1743710710515,5.60161,1785.2,1785.1,0.05]
[1743710710717,10.42789876,1785.2,1785.1,0.05]
[1743710711943,27.81072764,1785.2,1785.1,1e-05]
[1743710712237,9.40564,1785.0,1784.3,0.8119]
[1743710712437,10.43032876,1784.5,1784.3,0.8119]
[1743710712661,5.60439,1784.4,1784.1,0.80621]
[1743710712835,4.82628876,1784.5,1784.1,6.4111]
[1743710713046,11.17173,1784.9,1784.3,5.60426]
[1743710713047,10.42951876,1784.7,1784.3,5.60426]
[1743710713217,4.82628876,1784.7,1784.4,5.60409]
[1743710713411,4.82628876,1784.7,1784.5,0.55]
[1743710714419,10.42948876,1784.7,1784.5,0.55]
[1743710714740,4.82628876,1784.7,1784.5,0.55]
[1743710714941,5.60349,1784.6,1784.5,0.55]
[1743710715122,10.42974876,1784.7,1784.5,0.55]
[1743710715728,4.82628876,1784.7,1784.5,0.55]
[1743710716331,15.99886876,1784.9,1784.6,0.55]
[1743710716538,4.82628876,1784.9,1784.6,11.75673]
[1743710716743,4.82628876,1784.9,1784.6,6.1533]
[1743710717841,4.82628876,1784.9,1784.6,6.15348]
[1743710718918,10.42895876,1784.9,1784.6,6.15348]
[1743710719548,5.60224,1785.0,1784.6,6.15333]
[1743710719751,15.99824876,1785.1,1784.8,0.55]
[1743710719963,5.60224,1785.0,1784.8,0.55]
[1743710720450,15.99824876,1785.1,1784.8,0.55]
[1743710721054,21.60033876,1785.1,1784.8,0.55]
[1743710721351,11.4305374,1785.2,1784.8,11.75556]
[1743710721553,0.788,1785.4,1785.1,5.60192]
[1743710721739,10.42697876,1785.5,1785.2,0.55]
[1743710722050,5.60098,1785.4,1785.2,0.55]
[1743710722858,5.60129,1785.3,1785.2,0.55]
[1743710723057,5.60129,1785.3,1785.0,0.55]
[1743710723231,5.60173,1785.2,1785.0,0.55]
[1743710723428,5.60173,1785.2,1784.9,0.55]
[1743710723630,11.20353,1785.2,1784.9,0.55]
[1743710723839,5.60173,1785.2,1784.9,0.55]
[1743710724153,10.42762876,1785.3,1785.0,5.60222]
[1743710725059,5.60028,1785.7,1785.2,6.15161]
[1743710725245,6.35256,1785.8,1785.4,6.15089]
[1743710725455,6.35256,1785.8,1785.4,12.52463]
[1743710725671,5.59976,1785.8,1785.4,6.92373]
[1743710726080,11.19965,1785.8,1785.4,6.92373]
[1743710726578,5.59976,1785.8,1785.6,0.55]
[1743710726871,5.59985,1785.8,1785.6,0.55]
[1743710729459,16.02529876,1785.9,1785.6,0.55]
[1743710729643,5.59982,1785.8,1785.6,0.55]
[1743710730348,4.82628876,1785.9,1785.6,0.55]
[1743710730564,4.82628876,1785.9,1785.7,6.15004]
[1743710730868,16.43514876,1786.1,1785.7,11.74998]
[1743710731065,3.0,1786.0,1785.7,11.74998]
[1743710731560,3.0,1786.0,1785.9,0.55]
[1743710731881,3.0,1786.0,1785.9,0.88030162]
[1743710732244,10.42514876,1786.1,1785.9,0.88030162]
[1743710732542,10.42514876,1786.1,1785.9,0.55]
[1743710732943,10.42514876,1786.1,1786.0,0.33030162]
[1743710733144,5.59852,1786.2,1786.0,0.33030162]
[1743710733346,3.0,1786.2,1786.0,5.92939162]
[1743710733552,10.42381876,1786.5,1786.1,6.14869]
[1743710733848,5.59788,1786.4,1786.3,0.55]
[1743710734052,5.59788,1786.4,1786.3,0.8796617]
[1743710734948,10.42381876,1786.5,1786.3,0.8796617]
[1743710736095,10.42333876,1786.7,1786.4,5.59783]
[1743710736457,5.59705,1786.7,1786.5,0.32401039]
[1743710737160,10.42333876,1786.7,1786.5,0.32401039]
[1743710737351,5.59722,1786.6,1786.5,0.87401039]
[1743710738653,10.47262876,1786.9,1786.6,0.55]
[1743710738851,10.47262876,1786.9,1786.7,5.5969]
[1743710738852,0.05,1786.9,1786.7,5.5969]
[1743710739105,0.05,1786.9,1786.8,0.32401039]
[1743710740662,5.64628,1786.9,1786.8,0.32401039]
[1743710740995,5.59691,1786.7,1786.5,0.55]
[1743710741198,11.19346,1786.8,1786.5,0.55]
[1743710741504,11.19349,1786.8,1786.6,0.32177239]
[1743710741717,5.59673,1786.8,1786.6,0.32177239]
[1743710744267,17.45040976,1786.9,1786.6,0.32177239]
[1743710744682,17.45045976,1786.9,1786.6,0.32177239]
[1743710745202,11.85399976,1786.9,1786.6,0.32177239]
[1743710745701,4.87628876,1786.9,1786.7,6.14687]
[1743710745983,0.05,1786.9,1786.8,6.46846893]
[1743710747181,0.05,1786.9,1786.8,0.87187893]
[1743710747400,0.05,1786.9,1786.8,0.32187893]
[1743710747401,5.64628,1786.9,1786.8,0.32187893]
[1743710747586,10.47256876,1786.9,1786.8,0.32187893]
[1743710748383,4.87628876,1786.9,1786.8,0.32187893]
[1743710749158,0.05,1786.9,1786.8,0.32187893]
[1743710751378,5.64628,1786.9,1786.8,0.32187893]
[1743710753112,0.05,1786.9,1786.8,0.32187893]
[1743710754613,5.64628,1786.9,1786.8,0.32187893]
[1743710754987,11.67629876,1786.9,1786.8,0.32187893]
[1743710755483,10.47256876,1786.9,1786.8,0.32187893]
[1743710756915,4.87628876,1786.9,1786.8,0.32187893]
[1743710757883,10.47256876,1786.9,1786.8,0.32187893]
[1743710759624,4.87628876,1786.9,1786.8,0.32187893]
[1743710760551,10.47256876,1786.9,1786.8,0.32187893]
[1743710760847,4.87628876,1786.9,1786.8,0.32187893]
[1743710760991,10.47256876,1786.9,1786.8,0.32187893]
[1743710761436,4.87628876,1786.9,1786.8,0.32187893]
[1743710761650,10.47256876,1786.9,1786.8,0.32187893]
[1743710761847,4.87628876,1786.9,1786.8,0.32187893]
[1743710764831,10.47256876,1786.9,1786.8,0.32187893]
[1743710765426,4.87628876,1786.9,1786.8,0.32187893]
[1743710765928,0.05,1786.9,1786.8,0.32187893]
[1743710766832,4.87628876,1786.9,1786.8,0.32187893]
[1743710767034,4.87628876,1786.9,1786.8,0.49689903]
[1743710767235,10.47256876,1786.9,1786.8,0.49689903]
[1743710769437,10.47256876,1786.9,1786.8,0.67192825]
[1743710770036,4.87628876,1786.9,1786.8,0.67192825]
[1743710771415,10.47256876,1786.9,1786.8,0.67192825]
[1743710772606,4.87628876,1786.9,1786.8,0.67192825]
[1743710773509,10.47256876,1786.9,1786.8,0.67192825]
[1743710773910,4.87628876,1786.9,1786.8,0.67192825]
[1743710777142,0.05,1786.9,1786.8,0.67192825]
[1743710777444,0.05,1786.9,1786.8,7.44579437]
[1743710778137,0.05,1786.9,1786.8,1.84920437]
[1743710780249,5.64628,1786.9,1786.8,0.67192825]
[1743710781734,6.42438,1786.9,1786.8,0.67192825]
[1743710782223,11.98238,1786.9,1786.8,0.67192825]
[1743710782950,26.650182,1786.9,1786.8,0.32187893]
[1743710783456,5.59659,1786.8,1786.7,0.003973]
[1743710783654,13.64755596,1786.8,1786.7,0.32100381]
[1743710783954,38.31893896,1786.8,1786.7,0.32100381]
[1743710784315,38.31893896,1786.8,1786.7,0.003973]
[1743710785023,17.45945596,1786.8,1786.7,0.003973]
[1743710785224,17.45945596,1786.8,1786.7,0.3233477]
[1743710789573,3.0,1786.8,1786.7,0.3233477]
[1743710789859,6.06,1786.9,1786.8,0.55]
[1743710790039,0.05,1786.9,1786.8,0.87028023]
[1743710790235,0.05,1786.9,1786.8,6.14659]
[1743710790581,0.05,1786.9,1786.8,7.77298708]
[1743710790763,0.05,1786.9,1786.8,8.52718708]
[1743710791553,0.05,1786.9,1786.8,8.47122353]
[1743710791979,0.05,1786.9,1786.8,8.64622341]
[1743710792179,0.05,1786.9,1786.8,8.82123194]
[1743710794487,0.04247968,1786.9,1786.8,8.82123194]
[1743710796975,0.04247968,1786.9,1786.8,3.22464194]
[1743710797370,0.04247968,1786.9,1786.8,8.82123194]
[1743710797963,0.04247968,1786.9,1786.8,8.87719515]
[1743710798763,0.04247968,1786.9,1786.8,8.82123194]
[1743710800473,0.04247968,1786.9,1786.8,8.87718933]
[1743710800996,0.04247968,1786.9,1786.8,8.82123194]
[1743710801899,0.04247968,1786.9,1786.8,8.87718559]
[1743710804800,0.04247968,1786.9,1786.8,8.82123194]
[1743710805294,0.04247968,1786.9,1786.8,8.87718533]
[1743710805505,0.04247968,1786.9,1786.8,7.57298533]
[1743710805709,0.04247968,1786.9,1786.8,0.67028864]
[1743710805881,0.04247968,1786.9,1786.8,1.22028864]
[1743710807010,0.04247968,1786.9,1786.8,0.49528876]
[1743710807379,0.04247968,1786.9,1786.8,0.87028023]
[1743710808205,0.04247968,1786.9,1786.8,6.46687023]
[1743710808500,0.04247968,1786.9,1786.8,7.88922652]
[1743710810369,0.04247968,1786.9,1786.8,8.73968526]
[1743710811011,0.04247968,1786.9,1786.8,8.68372652]
[1743710811514,0.04247968,1786.9,1786.8,2.29263652]
[1743710812002,0.04247968,1786.9,1786.8,7.71422664]
[1743710812802,0.04247968,1786.9,1786.8,2.11763664]
[1743710813004,0.04247968,1786.9,1786.8,0.87028023]
[1743710816614,0.04247968,1786.9,1786.8,6.46687023]
[1743710817719,0.04247968,1786.9,1786.8,6.64187888]
[1743710818116,0.04247968,1786.9,1786.8,1.04528888]
[1743710818815,0.04247968,1786.9,1786.8,1.22029843]
[1743710824404,0.04247968,1786.9,1786.8,6.81688843]
[1743710824930,0.04247968,1786.9,1786.8,1.22029843]
[1743710825903,0.80717968,1786.9,1786.8,0.67029843]
[1743710826116,6.40345968,1786.9,1786.8,0.17500865]
[1743710826321,21.53132168,1786.9,1786.8,0.17500865]
[1743710826520,24.72667972,1786.9,1786.8,0.17500865]
[1743710826930,24.72667972,1786.9,1786.7,0.003973]
[1743710826931,5.59659,1786.8,1786.7,0.003973]
[1743710827135,16.73857876,1786.8,1786.7,0.003973]
[1743710827334,16.73857876,1786.8,1786.7,0.29350172]
[1743710828136,28.80748176,1786.8,1786.7,0.29350172]
[1743710828339,28.80748176,1786.8,1786.7,0.003973]
[1743710828340,32.87164171,1786.8,1786.7,0.003973]
[1743710829741,33.2847239,1786.8,1786.7,0.003973]
[1743710831540,36.2847239,1786.8,1786.7,3e-06]
[1743710831845,6.39127,1786.2,1786.1,0.17507188]
[1743710832035,10.11254934,1786.2,1786.1,0.17507188]
[1743710832231,9.39127,1786.2,1786.1,0.28952872]
[1743710832429,14.99,1786.2,1785.9,0.55]
[1743710832819,14.99,1786.2,1786.0,0.28952872]
[1743710833712,5.59879,1786.1,1786.0,0.83952872]
[1743710834136,9.39127,1786.2,1786.0,0.83952872]
[1743710834737,11.14885,1786.4,1786.1,0.55]
[1743710835011,5.61908876,1786.5,1786.1,1.3405]
[1743710835339,16.76703876,1786.7,1786.4,0.55]
[1743710835540,3.0,1786.6,1786.4,0.55]
[1743710835734,11.21603876,1786.7,1786.5,0.29309796]
[1743710835918,11.21603876,1786.7,1786.4,6.93829]
[1743710836112,4.82628876,1786.7,1786.5,0.29309796]
[1743710836741,6.01,1786.8,1786.6,6.14715]
[1743710837136,6.01,1786.8,1786.7,0.29309796]
[1743710837348,10.46504844,1786.9,1786.7,6.3874]
[1743710837349,4.86876844,1786.9,1786.7,6.3874]
[1743710837541,0.04247968,1786.9,1786.8,5.59659]
[1743710837854,0.04247968,1786.9,1786.8,5.88888823]
[1743710838518,0.04247968,1786.9,1786.8,6.43888823]
[1743710838721,0.04247968,1786.9,1786.8,7.72151705]
[1743710838921,0.04247968,1786.9,1786.8,6.43888823]
[1743710840036,0.04247968,1786.9,1786.8,6.49485016]
[1743710840231,0.04247968,1786.9,1786.8,6.49484855]
[1743710840426,0.04247968,1786.9,1786.8,6.43888823]
[1743710840626,0.04247968,1786.9,1786.8,7.25624483]
[1743710840834,0.04247968,1786.9,1786.8,8.54155931]
[1743710841235,0.04247968,1786.9,1786.8,8.7165528]
[1743710842363,0.04247968,1786.9,1786.8,8.89153191]
[1743710843528,0.04247968,1786.9,1786.8,9.2639451]
[1743710844366,0.04247968,1786.9,1786.8,9.31989053]
[1743710844734,0.04247968,1786.9,1786.8,8.28557531]
[1743710845058,0.04247968,1786.9,1786.8,8.34152754]
[1743710845256,0.04247968,1786.9,1786.8,8.89152754]
[1743710845429,0.04247968,1786.9,1786.8,11.89152754]
[1743710845637,9.68e-06,1786.9,1786.8,11.83557531]
[1743710845962,9.68e-06,1786.9,1786.8,17.99557531]
[1743710848171,9.68e-06,1786.9,1786.8,23.54357531]
[1743710850779,9.68e-06,1786.9,1786.8,17.38357531]
[1743710853980,9.68e-06,1786.9,1786.8,8.83557531]
[1743710854166,9.68e-06,1786.9,1786.8,6.23886083]
[1743710854483,9.68e-06,1786.9,1786.8,6.78886083]
[1743710854647,6.40878968,1786.9,1786.8,0.64227083]
[1743710854852,0.8125,1786.7,1786.5,5.59753]
[1743710855047,0.8125,1786.7,1786.5,5.59742]
[1743710855360,6.97328888,1786.7,1786.6,0.22695205]
[1743710855563,6.20266764,1786.7,1786.4,11.19548]
[1743710855750,6.20266764,1786.7,1786.5,6.37448205]
[1743710855950,0.8125,1786.7,1786.6,6.14722]
[1743710856351,0.8125,1786.7,1786.6,6.37417205]
[1743710856552,0.8125,1786.7,1786.6,0.77695205]
[1743710862602,6.35451,1786.7,1786.6,0.22695205]
[1743710862989,5.59759,1786.5,1786.2,0.55]
[1743710863196,10.42387876,1786.5,1786.3,0.22695205]
[1743710864306,4.82628876,1786.5,1786.3,0.22695205]
[1743710865372,10.42384876,1786.5,1786.3,0.22695205]
[1743710865579,0.8083,1786.4,1786.3,0.22695205]
[1743710865791,6.40616,1786.4,1786.2,0.55]
[1743710865991,4.82628876,1786.3,1786.1,5.59864]
[1743710867125,4.82628876,1786.3,1786.2,5.59847]
[1743710870428,6.35218,1786.1,1785.8,11.1993]
[1743710870632,4.82628876,1785.9,1785.7,5.59992]
[1743710870841,4.82628876,1785.9,1785.8,5.59973]
[1743710871029,4.82628876,1785.9,1785.8,6.14973]
[1743710876451,4.82628876,1785.9,1785.8,0.55]
[1743710877348,5.58968876,1785.9,1785.5,5.60064]
[1743710877649,4.82628876,1785.6,1785.5,0.55]
[1743710878245,4.82628876,1785.6,1785.4,11.20179]
[1743710878445,4.82628876,1785.6,1785.5,6.15067]
[1743710879547,5.30891764,1785.8,1785.6,5.60035]
[1743710879911,5.30891764,1785.8,1785.7,0.21975335]
[1743710880352,10.90864764,1785.8,1785.5,6.15067]
[1743710880553,10.90864764,1785.8,1785.6,0.21975335]
[1743710880965,16.50855764,1785.8,1785.6,0.21975335]
[1743710881265,10.90864764,1785.8,1785.6,0.21975335]
[1743710883363,5.30891764,1785.8,1785.6,0.21975335]
[1743710883565,4.82628876,1785.8,1785.6,11.42013335]
[1743710883733,4.82628876,1785.8,1785.6,11.42012335]
[1743710883932,4.82628876,1785.8,1785.6,5.81989335]
[1743710884130,4.82628876,1785.8,1785.6,11.42014335]
[1743710884768,0.55896888,1785.8,1785.6,0.21975335]
[1743710885066,4.82628876,1785.7,1785.6,0.76975335]
[1743710886467,5.38525764,1785.8,1785.6,0.76975335]
[1743710887366,5.38525764,1785.8,1785.6,6.36982335]
[1743710887560,4.82628876,1785.8,1785.7,5.60004]
[1743710887769,4.82628876,1785.8,1785.7,5.82355735]
[1743710887937,4.82628876,1786.0,1785.8,6.14973]
[1743710888140,4.82628876,1786.0,1785.9,5.59941]
[1743710888337,4.82628876,1786.0,1785.9,5.82292735]
[1743710888544,5.45307944,1786.0,1785.9,5.82292735]
[1743710889161,5.64958876,1786.2,1786.0,5.5991]
[1743710889471,5.64958876,1786.2,1786.1,0.77383547]
[1743710890234,0.773,1786.4,1786.1,6.37262547]
[1743710890433,5.59928876,1786.4,1786.2,5.59837]
[1743710890935,5.49928876,1786.4,1786.3,0.22383547]
[1743710891750,5.49928876,1786.4,1786.3,5.82199547]
[1743710891955,4.82628876,1786.4,1786.3,5.82199547]
[1743710894067,4.82628876,1786.4,1786.3,6.37199547]
[1743710894286,4.82628876,1786.4,1786.3,8.35592702]
[1743710894571,12.37275,1786.7,1786.3,8.35592702]
[1743710894572,4.82628876,1786.6,1786.4,5.59781]
[1743710894774,4.82628876,1786.6,1786.5,0.22097238]
[1743710895875,4.82628876,1786.6,1786.4,0.55]
[1743710896064,4.82628876,1786.6,1786.5,0.21948804]
[1743710901186,4.82628876,1786.6,1786.5,5.81701804]
[1743710902188,4.82628876,1786.6,1786.5,6.36701804]
[1743710903466,21.01242968,1786.9,1786.5,6.36701804]
[1743710903467,9.68e-06,1786.9,1786.8,6.14659]
[1743710904066,9.68e-06,1786.9,1786.8,6.36544204]
[1743710910104,11.19077844,1786.9,1786.8,0.21885204]
[1743710910477,11.19077844,1786.9,1786.6,5.5972]
[1743710910678,6.36448968,1786.9,1786.8,0.21535512]
[1743710910886,12.38683641,1786.9,1786.6,5.5972]
[1743710911091,12.38683641,1786.9,1786.8,0.21535512]
[1743710911602,6.79055641,1786.9,1786.6,11.19428]
[1743710911803,6.79055641,1786.9,1786.7,0.21535512]
[1743710912003,12.38693641,1786.9,1786.6,5.59708]
[1743710912204,12.38693641,1786.9,1786.7,0.21413635]
[1743710912406,12.38693641,1786.9,1786.6,5.59708]
[1743710912621,12.38693641,1786.9,1786.7,0.21413635]
[1743710912823,12.38693641,1786.9,1786.6,5.59708]
[1743710913022,12.38693641,1786.9,1786.7,0.21413635]
[1743710913226,12.38693641,1786.9,1786.6,5.59708]
[1743710913423,12.38693641,1786.9,1786.7,0.21403039]
[1743710913626,12.38693641,1786.9,1786.6,11.1942]
[1743710913827,12.38693641,1786.9,1786.7,0.21403039]
[1743710914027,12.38693641,1786.9,1786.6,11.1942]
[1743710914324,12.38693641,1786.9,1786.7,0.21403039]
[1743710914626,12.38693641,1786.9,1786.6,11.1942]
[1743710914794,12.38693641,1786.9,1786.7,0.21403039]
[1743710914995,12.38693641,1786.9,1786.6,5.59708]
[1743710915195,12.38693641,1786.9,1786.7,0.21403039]
[1743710915421,12.38693641,1786.9,1786.6,11.19415]
[1743710915598,12.38693641,1786.9,1786.7,0.21403039]
[1743710915920,12.38693641,1786.9,1786.6,5.59707]
[1743710916127,12.38693641,1786.9,1786.8,0.21403039]
[1743710916329,12.38693641,1786.9,1786.6,5.59707]
[1743710916626,12.38693641,1786.9,1786.7,0.21403039]
[1743710916805,12.38693641,1786.9,1786.6,5.59707]
[1743710917005,12.38693641,1786.9,1786.7,0.21403039]
[1743710917201,12.38693641,1786.9,1786.6,11.19417]
[1743710917406,12.38693641,1786.9,1786.7,0.21403039]
[1743710917727,12.38693641,1786.9,1786.6,5.59707]
[1743710917891,12.38693641,1786.9,1786.8,0.21403039]
[1743710918090,12.38693641,1786.9,1786.6,5.59707]
[1743710918514,12.38693641,1786.9,1786.7,0.21403039]
[1743710918904,12.38693641,1786.9,1786.5,5.59747]
[1743710919108,12.38693641,1786.9,1786.8,0.21440128]
[1743710919295,17.98348641,1786.9,1786.5,11.19489]
[1743710919499,17.98348641,1786.9,1786.5,5.59742]
[1743710919699,17.98348641,1786.9,1786.6,0.21440128]
[1743710920323,5.59664,1786.8,1786.6,0.21440128]
[1743710920528,17.98351641,1786.9,1786.6,0.21440128]
[1743710921819,5.59661,1786.8,1786.6,0.21440128]
[1743710922726,11.20229876,1786.7,1786.6,0.21440128]
[1743710922932,32.06178176,1786.7,1786.6,0.21440128]
[1743710923134,11.19494,1786.6,1786.2,5.59835]
[1743710923429,4.82628876,1786.4,1786.2,5.59835]
[1743710923929,5.60298876,1786.4,1786.2,5.59835]
[1743710924300,5.60298876,1786.4,1786.2,5.7734171]
[1743710924504,5.60298876,1786.4,1786.2,0.1750671]
[1743710924701,12.32108164,1786.4,1786.3,0.19817959]
[1743710924902,17.91914164,1786.4,1786.3,0.19817959]
[1743710925429,45.2262644,1786.4,1786.3,0.19817959]
[1743710925628,5.59879,1786.1,1786.0,0.1750671]
[1743710925929,20.87341876,1786.1,1786.0,0.1750671]
[1743710926133,33.08183976,1786.1,1786.0,0.1750671]
[1743710926339,33.08183976,1786.1,1786.0,0.36014939]
[1743710926513,11.19874,1786.0,1785.6,5.7753171]
[1743710926713,4.82628876,1785.8,1785.7,0.55]
[1743710926913,4.82628876,1785.8,1785.7,0.73508229]
[1743710929239,4.82628876,1785.8,1785.7,6.33512229]
[1743710929438,4.82628876,1785.8,1785.7,0.73508229]
[1743710932637,4.82628876,1785.8,1785.7,0.18508229]
[1743710932638,10.42601876,1785.8,1785.7,0.18508229]
[1743710932835,5.60006,1785.7,1785.4,5.60096]
[1743710933000,10.42725876,1785.5,1785.2,0.7652]
[1743710933335,11.24115876,1785.5,1785.2,0.7652]
[1743710933533,10.42771876,1785.3,1784.9,7.059646]
[1743710933709,4.82628876,1785.1,1784.9,7.059646]
[1743710933915,4.82628876,1785.1,1784.9,6.294446]
[1743710934137,4.82628876,1785.1,1785.0,0.55]
[1743710934325,4.82628876,1785.1,1784.9,11.896836]
[1743710934526,4.82628876,1785.1,1785.0,5.60224]
[1743710934903,4.82628876,1785.1,1785.0,6.15224]
[1743710935326,4.82628876,1785.1,1785.0,5.60224]
[1743710935522,4.82628876,1785.1,1785.0,6.15224]
[1743710937438,5.24846764,1785.3,1785.0,11.75431]
[1743710937603,4.82628876,1785.3,1785.0,11.75431]
[1743710938006,4.82628876,1785.3,1785.0,6.15207]
[1743710938609,10.85373406,1785.3,1785.0,6.15207]
[1743710939439,10.85373406,1785.3,1785.0,11.75417]
[1743710939637,10.85373406,1785.3,1785.1,0.17661005]
[1743710940001,5.25239406,1785.3,1785.1,5.77850005]
[1743710942141,4.82628876,1785.3,1785.1,5.77850005]
[1743710942344,4.82628876,1785.6,1785.4,6.41918]
[1743710942641,4.82628876,1785.6,1785.5,5.60067]
[1743710942823,4.82628876,1785.6,1785.5,0.17729612]
[1743710948846,4.82628876,1785.6,1785.5,5.77796612]
[1743710949037,0.43068799,1785.8,1785.6,5.60034]
[1743710949038,5.25697675,1785.8,1785.6,5.60034]
[1743710949343,4.82628876,1785.8,1785.7,0.17650453]
[1743710949550,11.54417164,1785.8,1785.7,0.17650453]
[1743710950223,5.60068,1785.5,1785.2,6.1515]
[1743710950434,4.82628876,1785.3,1785.2,11.75298]
[1743710952077,4.82628876,1785.5,1785.4,5.60086]
[1743710954656,4.82628876,1785.5,1785.4,5.77810337]
[1743710955156,4.82628876,1785.5,1785.4,0.17724337]
[1743710955358,4.82628876,1785.5,1785.4,5.77822337]
[1743710955757,4.82628876,1785.5,1785.4,6.32822337]
[1743710955965,4.82628876,1785.7,1785.6,6.15035]
[1743710956338,4.82628876,1785.9,1785.7,6.41617]
[1743710956652,4.82628876,1785.9,1785.8,5.59973]
[1743710957060,4.82628876,1785.9,1785.8,6.3247043]
[1743710958042,12.14451997,1786.1,1786.0,0.1749743]
[1743710958301,12.14451997,1786.1,1785.8,6.14973]
[1743710958464,4.82628876,1785.9,1785.8,6.14973]
[1743710962193,4.82628876,1786.0,1785.8,6.1496]
[1743710963512,4.82628876,1786.0,1785.8,0.55]
[1743710964095,4.82628876,1786.0,1785.8,6.14969]
[1743710964262,4.82628876,1786.0,1785.8,7.22668186]
[1743710964462,10.84770209,1786.2,1785.9,5.59941]
[1743710965107,4.82628876,1786.2,1786.0,6.14909]
[1743710965397,4.82628876,1786.2,1786.0,12.51036]
[1743710965692,4.82628876,1786.2,1786.0,0.55]
[1743710966501,4.82628876,1786.2,1786.0,6.14905]
[1743710966795,10.42478876,1786.2,1786.0,0.55]
[1743710967159,5.59879,1786.1,1786.0,0.55]
[1743710967780,11.19774,1786.1,1785.8,5.59966]
[1743710968090,10.42543876,1786.0,1785.8,0.55]
[1743710969697,10.42543876,1786.0,1785.9,0.17444671]
[1743710969899,10.42543876,1786.0,1785.8,0.55]
[1743710970094,10.42543876,1786.0,1785.9,0.17444671]
[1743710970394,16.02470876,1786.0,1785.8,0.55]
[1743710970595,10.42543876,1786.0,1785.9,0.17444671]
[1743710971013,10.42543876,1786.0,1785.8,0.55]
[1743710971176,10.42543876,1786.0,1785.9,0.17391913]
[1743710971381,10.42543876,1786.0,1785.8,0.55]
[1743710971584,4.82628876,1786.0,1785.9,0.17391913]
[1743710971782,4.82628876,1786.0,1785.9,0.7681]
[1743710972410,4.82628876,1786.0,1785.9,0.94201913]
[1743710975418,4.82628876,1786.0,1785.9,0.17391913]
[1743710975993,4.82628876,1786.0,1785.8,6.14972]
[1743710976194,4.82628876,1786.0,1785.9,0.17391913]
[1743710976395,5.5988,1786.1,1785.8,6.14961]
[1743710976594,5.5988,1786.1,1785.9,0.17391913]
[1743710976797,5.5988,1786.1,1785.8,6.14961]
[1743710977013,5.5988,1786.1,1785.9,0.17391913]
[1743710977214,5.5988,1786.1,1785.8,6.14961]
[1743710977423,5.5988,1786.1,1785.9,0.17391913]
[1743710977618,11.19775,1786.1,1785.8,6.14961]
[1743710977825,12.88292388,1786.1,1785.9,0.17391913]
[1743710977994,12.88292388,1786.1,1785.8,0.55]
[1743710978189,12.88292388,1786.1,1785.9,0.17391913]
[1743710978394,12.88292388,1786.1,1785.8,0.55]
[1743710978725,11.19784,1786.1,1785.9,0.17391913]
[1743710978925,11.19784,1786.1,1785.8,0.55]
[1743710979122,11.19784,1786.1,1786.0,0.17391913]
[1743710979333,11.19784,1786.1,1785.8,0.55]
[1743710979531,11.19784,1786.1,1786.0,0.17391913]
[1743710979732,11.19784,1786.1,1785.8,0.55]
[1743710979902,12.88293288,1786.1,1786.0,0.17391913]
[1743710980230,6.42025,1785.9,1785.7,0.28017814]
[1743710980405,5.59973,1785.8,1785.7,0.28017814]
[1743710980910,5.59973,1785.8,1785.6,0.55]
[1743710982325,11.24653876,1785.9,1785.6,6.15035]
[1743710982532,11.24653876,1785.9,1785.6,11.75056]
[1743710982727,11.24653876,1785.9,1785.6,6.15021]
[1743710982903,12.37119264,1785.9,1785.6,0.55]
[1743710983104,5.59987,1785.8,1785.6,0.55]
[1743710983602,0.8035,1785.4,1784.8,6.36283]
[1743710983914,10.42801876,1785.2,1784.8,6.36283]
[1743710984234,10.42801876,1785.2,1784.8,13.162128]
[1743710984435,10.42801876,1785.2,1784.9,0.55]
[1743710984736,10.42801876,1785.2,1785.0,0.15988755]
[1743710986128,5.60192,1785.1,1785.0,0.15988755]
[1743710986519,5.60192,1785.1,1784.9,0.55]
[1743710986721,12.03120264,1785.1,1785.0,0.16279042]
[1743710986929,12.03120264,1785.1,1784.6,1.04151887]
[1743710986930,5.60274,1784.9,1784.6,1.04151887]
[1743710987119,16.03176876,1784.9,1784.6,1.04151887]
[1743710987313,5.60308,1784.8,1784.6,0.28031887]
[1743710987838,5.60308,1784.8,1784.5,0.55]
[1743710988314,5.60308,1784.8,1784.5,6.855706]
[1743710988820,11.60747172,1784.9,1784.6,5.60347]
[1743710989939,10.36028876,1785.0,1784.6,5.65947463]
[1743710990240,10.42916876,1784.8,1784.6,0.55]
[1743710990532,10.42916876,1784.8,1784.5,5.60376]
[1743710990533,4.82628876,1784.8,1784.5,0.55]
[1743710990724,15.96256876,1785.0,1784.7,1.308]
[1743710990914,10.36028876,1785.0,1784.7,6.91108]
[1743710991109,15.96253876,1785.0,1784.7,6.91108]
[1743710991317,5.61988876,1785.4,1785.1,5.60177]
[1743710991557,4.82628876,1785.4,1785.2,0.55]